Cogmind - Beta 11.1 @@@ ROGUE MODE // 2022.04.28 @ 16:10:20 Player: Togure Result: Self-destructed Performance ------------- Evolutions (1) 500 Regions Visited (4) 800 Robots Destroyed (50) 250 Value Destroyed (1499) 1499 Prototype IDs (1) 20 Alien Tech Used (0) 0 Bonus (352) 352 TOTAL SCORE: 3421 Bonus ------- High Alert Combat Kills 95 Follower Combat Kills 257 Cogmind --------- Core Integrity 158/400 Matter 300/300 Energy 265/265 System Corruption 8% Temperature Cool (0) Movement Walking (190) Ox1 Location -9/Storage Parts ------- > --- POWER (1) -------- Reinforced Ion Engine > --- PROPULSION (4) --- Aluminum Leg Aluminum Leg > --- UTILITY (2) ------ Large Storage Unit Targeting Computer > --- WEAPON (2) ------- Beam Rifle Heavy Assault Rifle > --- INVENTORY (15) --- Reinforced Ion Engine Cooled Ion Engine Light Nuclear Core High-capacity Storage Unit Machine Analyzer Visual Processing Unit Sensor Array Signal Interpreter Reaction Control System Improved Light Armor Plating Rocket Launcher Peak State ------------ > --- POWER ------------ Improved Ion Engine > --- PROPULSION ------- Aluminum Leg Aluminum Leg Aluminum Leg Aluminum Leg > --- UTILITY ---------- Large Storage Unit Targeting Computer > --- WEAPON ----------- Minigun Heavy Battle Rifle > --- INVENTORY -------- Light Nuclear Core Aluminum Leg Aluminum Leg Aluminum Leg High-capacity Storage Unit Machine Analyzer Signal Interpreter Reaction Control System Improved Light Armor Plating Particle Gun Minigun [Rating: 17] Favorites ----------- Power Reinforced Ion Engine Engine Reinforced Ion Engine Propulsion Aluminum Leg Leg Aluminum Leg Utility Targeting Computer Storage Large Storage Unit Processor Targeting Computer Weapon Light Assault Rifle Energy Gun Beam Rifle Ballistic Gun Light Assault Rifle Launcher Grenade Launcher Build | -11 -10 -10 -9 -9 ------- Run | Scr Mat Min Mat Sto Slots Evolved 2 | . . . 2 . Power . | . . . . . Propulsion 2 | . . . 2 . Utility . | . . . . . Weapon . | . . . . . Parts Attached 48 | 6 6 5 22 9 Power 6 | 1 2 . 3 . Engine 6 | 1 2 . 3 . Core . | . . . . . Reactor . | . . . . . Propulsion 21 | 2 3 . 10 6 Treads . | . . . . . Leg 21 | 2 3 . 10 6 Wheel . | . . . . . Hover . | . . . . . Flight . | . . . . . Utility 5 | 1 . 1 3 . Device . | . . . . . Storage 4 | 1 . . 3 . Processor 1 | . . 1 . . Hackware . | . . . . . Protection . | . . . . . Artifact . | . . . . . Weapon 16 | 2 1 4 6 3 Energy Gun 1 | . . . . 1 Energy Cannon . | . . . . . Ballistic Gun 14 | 2 1 3 6 2 Ballistic Cannon . | . . . . . Launcher 1 | . . 1 . . Special Weapon . | . . . . . Impact Weapon . | . . . . . Slashing Weapon . | . . . . . Piercing Weapon . | . . . . . Special Melee Weapon . | . . . . . Unidentified Prototypes 1 | . . . 1 . Parts Lost 11 | . . . 7 4 Power . | . . . . . Propulsion 8 | . . . 5 3 Utility . | . . . . . Weapon 3 | . . . 2 1 Highest Loss Streak 4 | . . . 4 2 To Critical Strikes . | . . . . . Average Slot Usage (%) 90 | . 85 94 98 80 Engine 12 | . 14 14 11 11 Leg 34 | . 28 28 42 32 Storage 12 | . 14 14 11 11 Processor 8 | . . 9 11 11 Energy Gun 1 | . . . . 4 Ballistic Gun 21 | . 28 25 21 10 Naked Turns . | . . . . . Heaviest Build 36 | 10 12 17 36 36 Greatest Support 40 | 20 20 20 40 40 Greatest Overweight (x) 9 | . . . 2 9 Average Overweight (x) . | . . . . . Largest Inventory Capacity 20 | 8 8 8 20 15 Average Capacity 11 | 7 8 8 13 15 Most Carried 15 | 4 8 8 15 15 Average Carried 9 | 1 7 7 10 12 Final Capacity 15 | 8 8 8 15 15 Final Carried 15 | 4 7 8 15 11 Class Distribution -------------------- 62% | Mutant 32% | Scavenger-Mutant 5% | Commander-Mutant Dominant Class ---------------- Mutant | -10/Materials Mutant | -10/Mines Scavenger-Mutant | -9/Materials Scavenger-Mutant | -9/Storage Resources | -11 -10 -10 -9 -9 ----------- Run | Scr Mat Min Mat Sto Matter Collected 1455 | 164 216 93 689 293 Remotely . | . . . . . Salvage Created 2012 | . 401 107 1118 386 Parts 122 | . 13 7 79 23 Haulers Intercepted 1 | . . . . 1 Recyclers Shooed . | . . . . . Parts Field Recycled . | . . . . . Retrieved Matter . | . . . . . Parts Self-Destructed . | . . . . . Prevented . | . . . . . Kills | -11 -10 -10 -9 -9 ------- Run | Scr Mat Min Mat Sto Combat Hostiles Destroyed 46 | . 7 3 29 7 Guns 45 | . 7 2 29 7 AOE 1 | . . 1 . . Classes Destroyed 8 | . 3 2 2 1 Builder 1 | . . . 1 . Hauler 1 | . . . . 1 Recycler 3 | . 2 . 1 . Swarmer 10 | . 3 . 7 . Grunt 21 | . 4 . 14 3 Brawler 1 | . . . 1 . Sentry 13 | . . 2 7 4 Assembled 1 | . . 1 . . Best Kill Streak 6 | . 3 2 6 3 Combat Bots Only 6 | . 3 2 6 3 Max Kills in Single Turn 2 | . 1 1 2 1 Gunslinging 1 | . . . 1 . Exploded 1 | . . 1 . . Melee . | . . . . . Uniques/NPCs Destroyed . | . . . . . Combat | -11 -10 -10 -9 -9 -------- Run | Scr Mat Min Mat Sto Damage Taken 2571 | . 440 108 1599 424 Core 386 | . 98 46 204 38 Absorbed by Shields . | . . . . . Core Remaining (%) 71 | 100 . 42 . . Volleys Fired 159 | . 40 6 69 44 Largest 2 | . 2 2 2 2 Hottest 79 | . 40 63 58 79 Shots Fired 312 | . 80 12 137 83 Gun 311 | . 80 11 137 83 Cannon . | . . . . . Launcher 1 | . . 1 . . Special . | . . . . . Kinetic 272 | . 80 11 137 44 Thermal 39 | . . . . 39 Explosive 1 | . . 1 . . Electromagnetic . | . . . . . Robot Hit Streak 23 | . 23 7 16 9 Robot Miss Streak 5 | . 4 1 5 4 Penetration Max . | . . . . . Secondary Targets 7 | . 2 . 5 . Max Gunslinging Chain 1 | . 1 . 1 . Shots Hit Robots 176 | . 54 8 80 34 Core Hits 81 | . 22 7 39 13 Critical Kills 1 | . . . 1 . Critical Parts Destroyed 2 | . 1 . 1 . Critical Strikes 7 | . 1 . 2 4 Burn 4 | . . . . 4 Destroy 3 | . 1 . 2 . Melee Attacks . | . . . . . Impact . | . . . . . Slashing . | . . . . . Piercing . | . . . . . Sneak Attacks . | . . . . . Combat Hostiles . | . . . . . Follow-up Attacks . | . . . . . Damage Inflicted 2528 | . 457 95 1448 528 Guns 2504 | . 457 71 1448 528 Cannons . | . . . . . Explosions 24 | . . 24 . . Melee . | . . . . . Ramming . | . . . . . Kinetic 2297 | . 457 71 1448 321 Thermal 207 | . . . . 207 Explosive 24 | . . 24 . . Electromagnetic . | . . . . . Impact . | . . . . . Slashing . | . . . . . Piercing . | . . . . . Highest Corruption 8 | . . . 8 8 Average Corruption 7 | . . . 7 8 Corruption Purged . | . . . . . Corruption Blocked . | . . . . . Effects 47 | . . . 21 26 Message Errors 15 | . . . 4 11 Matter Fused 10 | . . . 6 4 Heat Flow Errors 6 | . . . 1 5 Energy Discharges 5 | . . . 4 1 Data Loss (minor) 2 | . . . 1 1 Data Loss (major) 4 | . . . 2 2 Misfires 2 | . . . 1 1 Alerts 2 | . . . 1 1 Weapon Failures 1 | . . . 1 . Overload Shots . | . . . . . Overflow Damage . | . . . . . Projectiles . | . . . . . Explosions . | . . . . . Melee . | . . . . . Knockbacks . | . . . . . Impact . | . . . . . Kinetic . | . . . . . Secondary . | . . . . . Self-Inflicted Damage . | . . . . . Shots . | . . . . . Rammed . | . . . . . Targets Rammed . | . . . . . Kicked . | . . . . . Crushed . | . . . . . Highest Temperature 287 | . 46 18 166 287 Average Temperature 62 | . 16 7 27 90 Received Heat Transfer 732 | . 150 27 399 156 Siege Activations . | . . . . . Robots Corrupted . | . . . . . Combat Hostiles . | . . . . . Parts Fried . | . . . . . Impact Corruptions . | . . . . . Robots Melted . | . . . . . Combat Hostiles . | . . . . . Parts Melted 4 | . . . . 4 Heat Transferred 814 | . . . . 814 Parts Sabotaged . | . . . . . Parts Stolen . | . . . . . Parts Stripped . | . . . . . Power Chain Reactions . | . . . . . Missiles Intercepted . | . . . . . Alert | -11 -10 -10 -9 -9 ------- Run | Scr Mat Min Mat Sto Peak Influence 581 | . 187 55 581 306 Initial 138 | . . . 6 138 Average 170 | . 78 35 286 159 Maximum Alert Level 2 | . . . 2 1 Low Security (%) 67 | 100 100 100 32 74 Level 1 22 | . . . 43 25 Level 2 9 | . . . 23 . Level 3 . | . . . . . Level 4 . | . . . . . Level 5 . | . . . . . High Security . | . . . . . Max Security . | . . . . . Squads Dispatched 8 | . . . 4 4 Investigation 4 | . . . 3 1 Extermination . | . . . . . Reinforcement 3 | . . . 1 2 Assault . | . . . . . Garrison 1 | . . . . 1 Intercept . | . . . . . Searches Triggered . | . . . . . Construction Impeded . | . . . . . Haulers Reinforced . | . . . . . Active Scanning Responses . | . . . . . Cargo Convoy Interrupts . | . . . . . Stealth | -11 -10 -10 -9 -9 --------- Run | Scr Mat Min Mat Sto Distress Signals 4 | . . . 4 . Communications Jammed . | . . . . . Distress Signals . | . . . . . Times Spotted 83 | . 15 2 49 17 Peak Tracking Total 7 | . 5 2 7 5 Tactical Retreats 6 | . 1 . 5 . Traps | -11 -10 -10 -9 -9 ------- Run | Scr Mat Min Mat Sto Traps Triggered 6 | . . . 3 3 Indirectly . | . . . . . Trap Hack Attempts . | . . . . . Triggered . | . . . . . Disarmed . | . . . . . Reprogrammed . | . . . . . Reused . | . . . . . Traps Extracted . | . . . . . Installed . | . . . . . Triggered . | . . . . . Machines | -11 -10 -10 -9 -9 ---------- Run | Scr Mat Min Mat Sto Machines Disabled 1 | . . . 1 . Max in Single Turn 1 | . . . 1 . Machines Sabotaged . | . . . . . Garrisons Compromised . | . . . . . Overloaded Fab Kills . | . . . . . Hacking | -11 -10 -10 -9 -9 --------- Run | Scr Mat Min Mat Sto Machines Accessed 17 | . 5 . 5 7 Terminals 17 | . 5 . 5 7 Fabricators . | . . . . . Repair Stations . | . . . . . Recycling Units . | . . . . . Scanalyzers . | . . . . . Garrison Access . | . . . . . Total Hacks 32 | . 6 . 13 13 Successful 17 | . 4 . 6 7 Failed 15 | . 2 . 7 6 Catastrophic 4 | . . . 2 2 Database Lockouts . | . . . . . Manual 20 | . 5 . 6 9 Terminals 32 | . 6 . 13 13 Fabricators . | . . . . . Repair Stations . | . . . . . Recycling Units . | . . . . . Scanalyzers . | . . . . . Garrison Access . | . . . . . Terminal Hacks 6 | . 1 . 3 2 Branch Access Points 1 | . 1 . . . Alert Level 2 | . . . 2 . Unreport Threat 1 | . . . 1 . Surveillance Status 1 | . . . . 1 Extermination Status 1 | . . . . 1 Fabricator Hacks . | . . . . . Repair Station Hacks . | . . . . . Recycling Unit Hacks . | . . . . . Scanalyzer . | . . . . . Garrison Access Hacks . | . . . . . Unauthorized Hacks 11 | . 3 . 3 5 Terminals 11 | . 3 . 3 5 Botnet 11 | . 3 . 3 5 Fabricators . | . . . . . Repair Stations . | . . . . . Recycling Units . | . . . . . Scanalyzers . | . . . . . Garrison Access . | . . . . . Data Cores Recovered . | . . . . . Used . | . . . . . Hacking Detections 9 | . 2 . 4 3 Full Trace Events 3 | . . . 2 1 Feedback Events . | . . . . . Feedback Blocked . | . . . . . Robot Schematics Acquired . | . . . . . Robots Built . | . . . . . Authchips . | . . . . . Time . | . . . . . Total Robot Build Rating . | . . . . . Part Schematics Acquired . | . . . . . Parts Built . | . . . . . Authchips . | . . . . . Time . | . . . . . Total Part Build Rating . | . . . . . Parts Repaired . | . . . . . Time . | . . . . . Parts Recycled . | . . . . . Recycled Matter . | . . . . . Retrieved Matter . | . . . . . Retrieved Components . | . . . . . Parts Scanalyzed . | . . . . . Part Schematics Acquired . | . . . . . Parts Damaged . | . . . . . Bothacking | -11 -10 -10 -9 -9 ------------ Run | Scr Mat Min Mat Sto Used RIF Installer . | . . . . . Robots Hacked . | . . . . . Non-combat . | . . . . . Combat . | . . . . . Robot Hacks Applied . | . . . . . Relay Couplers Released . | . . . . . Fabnet Peak Effective % . | . . . . . Robots Rewired . | . . . . . Allies Hacked . | . . . . . Hacks Repelled . | . . . . . Allies | -11 -10 -10 -9 -9 -------- Run | Scr Mat Min Mat Sto Total Allies 10 | . . . . 10 Largest Group 10 | . . . . 10 Highest-Rated Group 88 | . . . . 88 Highest-Rated Ally 16 | . . . . 16 Total Orders . | . . . . . Ally Attacks 54 | . . . . 54 Total Damage 549 | . . . . 549 Kills 9 | . . . . 9 Allies Corrupted . | . . . . . Allies Melted . | . . . . . Intel | -11 -10 -10 -9 -9 ------- Run | Scr Mat Min Mat Sto Robot Analysis Total . | . . . . . Derelict Logs Recovered 1 | . . 1 . . Drone Launches . | . . . . . Drone Recoveries . | . . . . . Exploration | -11 -10 -10 -9 -9 ------------- Run | Scr Mat Min Mat Sto Turns Passed 3573 | 65 861 471 1404 772 Spaces Moved 2177 | 46 593 349 853 336 Core 5 | 3 . . . 2 Treads . | . . . . . Legs 2172 | 43 593 349 853 334 Wheels . | . . . . . Hover . | . . . . . Flight . | . . . . . Fastest Speed 50 | 50 120 120 120 120 Average Speed 127 | 115 120 120 122 160 Slowest Speed 500 | 120 120 120 260 500 Overloaded Moves . | . . . . . Propulsion Burnouts . | . . . . . Robots Hopped . | . . . . . Cave-ins Triggered 1 | . . . 1 . Exploration Rate (%) 52 | 4 77 62 70 47 Regions Visited 4 Branch Regions 2 Pre-discovered Areas . | . . . . . Known Exits Taken 1 | . 1 . . . Unknown Exits Taken 3 | 1 . 1 1 . Scrap Searched 2 | . . 2 . . Spaces Dug . | . . . . . Terrain Destroyed 15 | . . 9 6 . Melee . | . . . . . Projectile 7 | . . 1 6 . AOE 8 | . . 8 . . Terrain Rammed . | . . . . . Walls Destroyed . | . . . . . Machines Disabled . | . . . . . Actions | -11 -10 -10 -9 -9 --------- Run | Scr Mat Min Mat Sto Total 2710 | 55 683 390 1092 490 Wait 265 | . 29 23 121 92 Move 2173 | 45 592 348 852 336 Hop . | . . . . . Pick Up 40 | 4 7 5 17 7 Fast Attach 6 | 6 . . . . Attach 17 | . . 1 7 9 Detach . | . . . . . Swap 25 | . 6 4 15 . Drop 25 | . 9 3 11 2 Fire 159 | . 40 6 69 44 Melee . | . . . . . Ram . | . . . . . Kick . | . . . . . Crush . | . . . . . Escape Stasis . | . . . . . Rewire . | . . . . . Trap . | . . . . . Miscellaneous . | . . . . . Route ------- -11/Scrapyard -10/Materials (discovered 3 exits: *Mat x2 / *Min) -10/Mines -9/Materials (discovered 4 exits: [*Mat x2] / [*Min] / *Sto) -9/Storage History --------- Turn | Location | Event 4 | -11/Scrapyard | Discovered new exit (range 16) 66 | -11/Scrapyard | Entered Materials 207 | -10/Materials | Discovered new exit (range 16) 348 | -10/Materials | Build established: Mutant 493 | -10/Materials | Discovered new exit (range 15) 790 | -10/Materials | Discovered new exit (range 9) 811 | -10/Materials | Identified exit to Mines 927 | -10/Materials | Entered Mines 929 | -10/Mines | Met a Derelict bent on vengeance 1018 | -10/Mines | Learned Materials stockpile data 1041 | -10/Mines | Core integrity fell below 50% 1152 | -10/Mines | A weapon hastily lodged in a ceiling crevice suddenly fell to the ground 1323 | -10/Mines | Assembled infested the area 1375 | -10/Mines | Discovered new exit (range 14) 1398 | -10/Mines | Entered Materials 1398 | -9/Materials | Evolved 2 slots: Propulsion x2 1651 | -9/Materials | Discovered new exit (range 15) 2060 | -9/Materials | Discovered new exit (range 3) 2189 | -9/Materials | Crushed by falling debris 2220 | -9/Materials | Lost 4 parts (3n1w) 2512 | -9/Materials | Build established: Scavenger-Mutant 2523 | -9/Materials | Discovered new exit (range 7) 2723 | -9/Materials | Discovered new exit (range 14) 2799 | -9/Materials | Core integrity fell below 50% 2802 | -9/Materials | Entered Storage 2941 | -9/Storage | Assisted by bots powering up and referring to "LRC-V3" 3484 | -9/Storage | Garrison activated, responded to threat 3574 | -9/Storage | Self-destructed Last Messages --------------- 03513_ Y-45 Defender destroyed. 03522_ Trooper 2a destroyed. 03524_ K-01 Serf collects debris. 03526_ DOBHRADPJLY/&T>5SE5,Q=2JBV 03546_ G-34 Mercenary suffers critical hit (Burn). 03547_ System corrupted: Component data lost. 03549_ G-34 Mercenary suffers critical hit (Burn). 03549_ Heat Sink melted. 03549_ G-34 Mercenary destroyed. 03550_ Acquired 31 matter. 03552_ G-34 Mercenary destroyed. 03553_ Acquired 14 matter. 03556_ Acquired 3 matter. 03558_ Aluminum Leg destroyed. 03558_ G-34 Mercenary suffers critical hit (Burn). 03558_ Ion Engine melted. 03558_ G-34 Mercenary destroyed. 03559_ Acquired 3 matter. 03561_ Aluminum Leg destroyed. 03562_ Acquired 3 matter. Map ----- +----------------------------------------------------+ | | | | | | | | | | | | | | | | | | | | | | | | | | | | | | | | | ?????????????????????????????????????????????????? | | ?????????????????????????????????????????????????? | | ?????????????????????????????????????????????????? | | ?????????????????????????????????????????????????? | | ?????????????????????????????????????????????????? | | ?????????????????????????????????????????????????? | | ????????????????????############?????????????????? | | ????????????????????# Y #?????????????????? | | ????????????????????# """ """ #??????????????????? | | ????????????????????# """@""" #??????????????????? | | ????????????????????# """l""" #??????????????????? | | ??????""""??????????# """ """ #??????????????????? | | ?????## #??????????# """ """ #??????????????????? | | ?????#T #??????????# g #??????????????????? | | ####### #??????????# !%[ !#??????????????????? | | # ################+############+??????????? | | [! + + ##==% !%=*= !%[ ??????? | | # # """ """ ## ! !*%*! =! =%??????? | | ! ! # # """ """ + *%! =??????? | | # #!= """ """ ######+#############???????? | | # #![! #??????????????????????????? | | # ##%##############???????????????????????? | | # ####??###T##### #???????????????????????? | | + #?????# #???????????????????????? | | ####### ##?????# """ #???????????????????????? | | ??????# #??????# "T"! #???????????????????????? | | ??????# #??????# =%**= #???????????????????????? | | ??????# #??????# """%""" #???????????????????????? | | ??????#/######## """=""" #???????????????????????? | | ??????# # """ """ #???????????????????????? | | ??????# # #???????????????????????? | | ??????# #/###+######??????????????????????? | | ??????# """""" # ==[ #??????????????????????? | | ??????# "????" + * =^ ^ #??????????????????????? | +----------------------------------------------------+ Best States ------------- Heat Dissipation 28 Energy Generation 12 Energy Capacity 265 Matter Stores 300 Matter Capacity 300 Sight Range 16 Terrain Scan Density 10 Evasion (%) 55 Targeting Accuracy 5 Item Schematics ----------------- None Robot Schematics ------------------ None Fabricated ------------ Nothing Alien Tech Used ----------------- None Achievements -------------- None Challenges ------------ None Game ------ Seed RemoteArchitectShotgun Manual? 0 Play Time 00:44:54 Cumulative 27.7 hours Start 2022.04.27 @ 16:27:23 End 2022.04.28 @ 16:10:20 Sessions 3 Manual Loads 0 Difficulty Rogue Special Mode None Game No. 48 Rogue 48 Adventurer 0 Explorer 0 Win Type - Total 0 Types 0/0/0/0/0/0/0/0/0 Lore% 23 Gallery% 19 Achievement% 19 Wizard Run 0 Options --------- ASCII 0 Keyboard 0 Movement Mouse Keybinds 0 Fullscreen 1 Font 24/Smallcaps Map View 76x50 Tactical HUD 1 Map Filters NONE Filters NONE Steam 1 RUN: 3e51670c-9161-4396-88e9-7d5d90e9c128